Workbook

Sheet Welkom
B2: ENDIFE
B3: Educatie- eN DIagnose voor Financieel-Economische gezondheid
B6: Auteurs: Erwin Wauters, Dries Loncke, Frederik Leen, Jef Van Meensel
B7: Gemaakt in het kader van het demonstratieproject 'Witloofbarometer' i.o.v. het Departement Landbouw en Visserij
B8: Projectpartners: Nationale Proeftuin voor Witloof (projectleider), Inagro, ILVO en BB-Consult
B11: Contact:
B12: Tim De Clercq (Nationale Proeftuin voor Witloof, tim.declercq@vlaamsbrabant.be)
B13: Tania De Marez (Inagro, tania.demarez@inagro.be); Peter Maenhout (Inagro, peter.maenhout@inagro.be)
B14: Christien Miroir (BB-Consult,christien.miroir@boerenbond.be)
B17: Aansprakelijkheidsbeperking ENDIFETM werd door het ILVO met de meeste zorg en nauwkeurigheid ontwikkeld. Er wordt evenwel geen enkele garantie gegeven omtrent de juistheid of de volledigheid van de informatie geleverd door ENDIFETM. De gebruiker van ENDIFETM ziet af van elke klacht tegen het ILVO of zijn ambtenaren, van welke aard ook, met betrekking tot het gebruik van de via ENDIFETM beschikbaar gestelde informatie. In geen geval zal het ILVO of zijn ambtenaren aansprakelijk gesteld kunnen worden voor eventuele nadelige gevolgen die voortvloeien uit het gebruik van de via ENDIFETM beschikbaar gestelde informatie. ENDIFETM is een gedeponeerd handelsmerk.

Sheet Info
B2: ENDIFE 3.0
B3: Educatie- eN DIagnose voor Financieel-Economische gezondheid
B7: ENDIFE is een programma dat in staat is om de economische en financiële toestand van uw witloofbedrijf onder de loep te nemen op basis van gegevens uit de bedrijfseconomische boekhouding. Daarnaast laat ENDIFE toe om op een eenvoudige manier door te rekenen wat de impact van veranderingen op uw bedrijf kan zijn op de economische en financiële gezondheid van uw bedrijf. De tool die u nu geopend heeft is ENDIFE3.0, een tool om de impact na te gaan van strategische wijzigingen op uw bedrijf. Strategische wijzigingen (of investeringen) zijn grote veranderingen aan de structuur van je bedrijf waarvan de impact meerdere jaren duurt. Typische voorbeelden zijn de aankoop van grond en de aankoop, uitbreiding of vernieuwing van gebouwen en machines.
B9: Invoer
B11: Deze rekentool om investeringen te analyseren is bewust vrij eenvoudig gehouden. In het tabblad Invoer moet u een aantal gegevens invullen over jouw investering. Zo moet je het totaal bedrag van de investering invullen, de verdisconteringsvoet die je wil gebruiken om je investering te analyseren, en de rente die je moet betalen als je een lening aangaat bij de bank. Daarnaast moet je voor alle jaren dat je de investering zal gebruiken inschatten wat de totale extra baten en de totale extra kosten zullen zijn door de investering over een bepaalde periode te gebruiken. Dit kan tot maximaal 30 jaar, als je de investering minder lang gebruikt, dan vul je voor de overige jaren het getal 0 in. Het inschatten van de jaarlijkse baten en kosten is niet eenvoudig, maar wel noodzakelijk om een goed zicht te krijgen over je investering. Meestal vul je voor elk jaar dezelfde baten en kosten in. Een mogelijkheid is ook dat je voor de eerste paar jaren lagere baten invult, als je verwacht dat je investering in het begin mogelijk nog niet goed rendeert. De informatie die nodig is kan je halen (1) uit je eigen boekhouding (bijvoorbeeld als je investeert in een extra ha grond kan je in je boekhouding kijken hoeveel baten en kosten je normaal uit 1 ha witloof haalt); (2) de fabrikant of verkoper van de investering; (3) collega's; (4) adviseurs; (5) vakbladen; (6) studiedagen en demonstratiedagen.
B13: Resultaat
B15: Het model berekent de netto huidige waarde (NHW) van je investering. Dit is een maatstaf om na te gaan of je investering economisch zinvol is. De waarde die het model geeft is NIET gelijk aan het rendement van je investering, het is een maat die je vertelt of je investering een economisch goede investering is.
B17: Opmerkingen
B19: ENDIFE kan enkel gebruikt worden indien macro's zijn ingeschakeld.

Sheet Invoer
A1: In dit tabblad moet je de gegevens van je investering invullen. Let op, je kan enkel iets in te vullen in de lichtgrijze cellen met een kader rond; de groene cellen worden berekend. Je kan ook steeds op de knoppen klikken voor meer uitleg.
A3: Totaal bedrag van de investering
A4: Verdisconteringsvoet
A5: Rente
B10: 1 | C10: 2 | D10: 3 | E10: 4 | F10: 5 | G10: 6 | H10: 7 | I10: 8 | J10: 9 | K10: 10 | L10: 11 | M10: 12 | N10: 13 | O10: 14 | P10: 15 | Q10: 16 | R10: 17 | S10: 18 | T10: 19 | U10: 20 | V10: 21 | W10: 22 | X10: 23 | Y10: 24 | Z10: 25 | AA10: 26 | AB10: 27 | AC10: 28 | AD10: 29 | AE10: 30
A11: Totale baten per jaar
A12: Totale uitgaven
A13: Jaarlijkse netto resultaat | B13: =B11-B12 -> 0 | C13: =C11-C12 -> 0 | D13: 0 | E13: 0 | F13: 0 | G13: 0 | H13: 0 | I13: 0 | J13: 0 | K13: 0 | L13: 0 | M13: 0 | N13: 0 | O13: 0 | P13: 0 | Q13: 0 | R13: 0 | S13: 0 | T13: 0 | U13: 0 | V13: 0 | W13: 0 | X13: 0 | Y13: 0 | Z13: 0 | AA13: 0 | AB13: 0 | AC13: 0 | AD13: 0 | AE13: 0
A14: Jaarlijkse huidige waarde | B14: =B13/(1+$B4)^B10 -> 0 | C14: =C13/(1+$B4)^C10 -> 0 | D14: 0 | E14: 0 | F14: 0 | G14: 0 | H14: 0 | I14: 0 | J14: 0 | K14: 0 | L14: 0 | M14: 0 | N14: 0 | O14: 0 | P14: 0 | Q14: 0 | R14: 0 | S14: 0 | T14: 0 | U14: 0 | V14: 0 | W14: 0 | X14: 0 | Y14: 0 | Z14: 0 | AA14: 0 | AB14: 0 | AC14: 0 | AD14: 0 | AE14: 0
B15: 0 | C15: 1 | D15: 2 | E15: 3 | F15: 4 | G15: 5 | H15: 6 | I15: 7 | J15: 8 | K15: 9 | L15: 10 | M15: 11 | N15: 12 | O15: 13 | P15: 14 | Q15: 15 | R15: 16 | S15: 17 | T15: 18 | U15: 19 | V15: 20 | W15: 21 | X15: 22 | Y15: 23 | Z15: 24 | AA15: 25 | AB15: 26 | AC15: 27 | AD15: 28 | AE15: 29 | AF15: 30
A16: Jaarlijkse kasstroom | B16: =-B3 -> 0 | C16: =B13 -> 0 | D16: =C13 -> 0 | E16: 0 | F16: 0 | G16: 0 | H16: 0 | I16: 0 | J16: 0 | K16: 0 | L16: 0 | M16: 0 | N16: 0 | O16: 0 | P16: 0 | Q16: 0 | R16: 0 | S16: 0 | T16: 0 | U16: 0 | V16: 0 | W16: 0 | X16: 0 | Y16: 0 | Z16: 0 | AA16: 0 | AB16: 0 | AC16: 0 | AD16: 0 | AE16: 0 | AF16: 0
A17: Jaarlijkse cumulatieve kasstroom | B17: =B16 -> 0 | C17: =B17+B14 -> 0 | D17: 0 | E17: 0 | F17: 0 | G17: 0 | H17: 0 | I17: 0 | J17: 0 | K17: 0 | L17: 0 | M17: 0 | N17: 0 | O17: 0 | P17: 0 | Q17: 0 | R17: 0 | S17: 0 | T17: 0 | U17: 0 | V17: 0 | W17: 0 | X17: 0 | Y17: 0 | Z17: 0 | AA17: 0 | AB17: 0 | AC17: 0 | AD17: 0 | AE17: 0 | AF17: 0

Sheet Resultaat
A1: Netto huidige waarde (NHW)
A3: NHW van je investering | D3: =(Invoer!B14+Invoer!C14+Invoer!D14+Invoer!E14+Invoer!F14+Invoer!G14+Invoer!H14+Invoer!I14+Invoer!J14+Invoer!K14+Invoer!L14+Invoer!M14+Invoer!N14+Invoer!O14+Invoer!Q14+Invoer!R14+Invoer!S14+Invoer!T14+Invoer!U14+Invoer!V14+Invoer!W14+Invoer!X14+Invoer!Y14+Invoer!Z14+Invoer!AA14+Invoer!AB14+Invoer!AC14+Invoer!AD14+Invoer!AE14)-Invoer!B3 -> 0
A6: Evaluatie | D6: =IF(D3<=0,"Er is een grote kans dat deze investering economisch NIET rendabel is",IF(AND(0<D3,D3<5000),"Er is een redelijke kans dat deze investering economisch rendabel zal zijn","Er is een grote kans dat deze investering economisch rendabel zal zijn")) -> Er is een grote kans dat deze investering economisch NIET rendabel is
A8: Interne opbrengstvoet (IOV)
A10: IOV van je investering | D10: =IRR(Invoer!B16:AF16) -> 
A13: Evaluatie | D13: =IF(D10 < Invoer!B5,"Er is een grote kans dat deze investering economisch NIET rendabel is",IF(AND(Invoer!B5 < D10,D10<=(Invoer!B5 + 0.02)),"Er is een redelijke kans dat deze investering economisch rendabel zal zijn","Er is een grote kans dat deze investering economisch rendabel zal zijn")) -> 
A15: Terugbetaalperiode (TBP)

Sheet Rekenblad 1 (hidden)
A1: Hier staan verschillende economische en financiële indicatoren weergegeven, alsook een diagnose die zegt of de score van een indicator Goed, Matig of Zwak is.
A2: Wanneer u de cursor van uw computer boven een indicator houdt, verschijnt uitleg over wat die indicator precies betekent.
A3: Wat kan gedaan worden om de waarde van deze indicator te verbeteren, kunt u vinden door op de aanwezige blauwe hyperlinks te klikken.
A4: Hydrocultuur
A6: Economische indicatoren | D6: Uw waarde | E6: Streefwaarde 1 | F6: Streefwaarde 2 | G6: Diagnose | H6: Nieuwe waarde
A7: Schuldgraad
B9: Vreemd vermogen / totaal vermogen | D9: =(Schulden_korte_termijn+Schulden_lange_termijn)/(Activa) ->  | E9: 0.6 | F9: 0.3 | G9: =IF(D9>=E9,"Zwak",IF(AND(E9>D9,D9>F9),"Matig",IF(D9<=F9,"Goed"," "))) ->  | H9: =(Schulden_korte_termijn_nieuw+Schulden_lange_termijn_nieuw)/(Activa_nieuw) -> 
A11: Winstgevendheid
B13: Rendement van eigen arbeid ("arbeidsinkomen") | D13: =((Opbrengsten)-(Variabele_kosten)-(Betaalde_arbeid+Betaalde_rente+Fictieve_rente+Betaalde_pacht+Afschrijvingen+Algemene_vaste_kosten))/Eigen_arbeid ->  | E13: 25000 | F13: 50000 | G13: =IF(D13<=E13,"Zwak",IF(AND(E13<D13,D13<F13),"Matig",IF(D13>=F13,"Goed"," "))) ->  | H13: =((Opbrengsten_nieuw)-(Variabele_kosten_nieuw)-(Betaalde_arbeid_nieuw+Betaalde_rente_nieuw+Fictieve_rente_nieuw+Betaalde_pacht_nieuw+Afschrijvingen_nieuw+Algemene_vaste_kosten_nieuw))/Eigen_arbeid_nieuw -> 
B15: Rendement van totaal vermogen | D15: =(Opbrengsten-Variabele_kosten-(Betaalde_arbeid+Fictieve_arbeid+Betaalde_pacht+Afschrijvingen+Algemene_vaste_kosten))/(Activa) ->  | E15: 0.03 | F15: 0.06 | G15: =IF(D15<=E15,"Zwak",IF(AND(E15<D15,D15<F15),"Matig",IF(D15>=F15,"Goed"," "))) ->  | H15: =(Opbrengsten_nieuw-Variabele_kosten_nieuw-(Betaalde_arbeid_nieuw+Fictieve_arbeid_nieuw+Betaalde_pacht_nieuw+Afschrijvingen_nieuw+Algemene_vaste_kosten_nieuw))/(Activa_nieuw) -> 
B17: Rendement van eigen vermogen | D17: =(Opbrengsten-Variabele_kosten-(Betaalde_arbeid+Fictieve_arbeid+Betaalde_rente+Betaalde_pacht++Afschrijvingen+Algemene_vaste_kosten))/(Eigen_vermogen) ->  | E17: 0.02 | F17: 0.08 | G17: =IF(D17<=E17,"Zwak",IF(AND(E17<D17,D17<F17),"Matig",IF(D17>=F17,"Goed"," "))) ->  | H17: =(Opbrengsten_nieuw-Variabele_kosten_nieuw-(Betaalde_arbeid_nieuw+Fictieve_arbeid_nieuw+Betaalde_rente_nieuw+Betaalde_pacht_nieuw+Afschrijvingen_nieuw+Algemene_vaste_kosten_nieuw))/(Eigen_vermogen_nieuw) -> 
B19: Operationele winstmarge ratio | D19: =((D21+Betaalde_rente)-Fictieve_arbeid)/(Ontvangsten_witloof+Andere_ontvangsten) ->  | E19: 0.1 | F19: 0.25 | G19: =IF(D19<=E19,"Zwak",IF(AND(E19<D19,D19<F19),"Matig",IF(D19>=F19,"Goed"," "))) ->  | H19: =((H21+Betaalde_rente_nieuw)-Fictieve_arbeid_nieuw)/(Ontvangsten_witloof_nieuw+Andere_ontvangsten_nieuw) -> 
B21: Netto bedrijfsinkomen | D21: =(Opbrengsten)-(Variabele_kosten)-(Afschrijvingen+Betaalde_pacht+Betaalde_rente+Betaalde_arbeid+Algemene_vaste_kosten) ->  | E21: 100000 | F21: 300000 | G21: =IF(D21<=E21,"Zwak",IF(AND(E21<D21,D21<F21),"Matig",IF(D21>=F21,"Goed"," "))) ->  | H21: =(Opbrengsten_nieuw)-(Variabele_kosten_nieuw)-(Afschrijvingen_nieuw+Betaalde_pacht_nieuw+Betaalde_rente_nieuw+Betaalde_arbeid_nieuw+Algemene_vaste_kosten_nieuw) -> 
A23: Financieel-economische efficiëntie | G23: =IF(D23>E23,"zwak",IF(AND(E23>D23,D23>F23),"matig",IF(D21<=F23,"goed"," "))) -> 
B25: Activa-omzet ratio | D25: =(Opbrengsten)/(Activa) ->  | E25: 0.3 | F25: 0.45 | G25: =IF(D25<=E25,"Zwak",IF(AND(E25<D25,D25<F25),"Matig",IF(D25>=F25,"Goed"," "))) ->  | H25: =(Opbrengsten_nieuw)/(Activa_nieuw) ->  | I25: Kosten | J25: =D27 -> 
I26: Afschrijvingen | J26: =D29 -> 
B27: Kosten-omzetratio | D27: =(Variabele_kosten+Betaalde_arbeid+Betaalde_pacht)/(Opbrengsten) ->  | E27: 0.8 | F27: 0.6 | G27: =IF(D27>=E27,"Zwak",IF(AND(E27>D27,D27>F27),"Matig",IF(D27<=F27,"Goed"," "))) ->  | H27: =(Variabele_kosten_nieuw+Betaalde_arbeid_nieuw+Betaalde_pacht_nieuw)/(Opbrengsten_nieuw) ->  | I27: Intrest | J27: =D31 -> 
I28: Inkomen | J28: =D33 -> 
B29: Afschrijvings-omzetratio | D29: =Afschrijvingen/Opbrengsten ->  | E29: 0.1 | F29: 0.05 | G29: =IF(D29>=E29,"Zwak",IF(AND(E29>D29,D29>F29),"Matig",IF(D29<=F29,"Goed"," "))) ->  | H29: =Afschrijvingen_nieuw/Opbrengsten_nieuw -> 
B31: Intrest-omzetratio | D31: =Betaalde_rente/Opbrengsten ->  | E31: 0.1 | F31: 0.05 | G31: =IF(D31>=E31,"Zwak",IF(AND(E31>D31,D31>F31),"Matig",IF(D31<=F31,"Goed"," "))) ->  | H31: =Betaalde_rente_nieuw/Opbrengsten_nieuw -> 
B33: Inkomens-omzetratio | D33: =D21/(Opbrengsten) ->  | E33: 0.1 | F33: 0.2 | G33: =IF(D33<=E33,"Zwak",IF(AND(E33<D33,D33<F33),"Matig",IF(D33>=F33,"Goed"," "))) ->  | H33: =H21/(Opbrengsten_nieuw) -> 
A35: Financiële indicatoren
A36: Balansliquiditeit
B37: Vlottende ratio | D37: =(Cash+Voorraden+Voorschotten)/(Schulden_korte_termijn) ->  | E37: 1 | F37: 1.3 | G37: =IF(D37<=E37,"Zwak",IF(AND(E37<D37,D37<F37),"Matig",IF(D37>=F37,"Goed"," "))) ->  | H37: =(Cash_nieuw+Voorraden_nieuw+Voorschotten_nieuw)/(Schulden_korte_termijn_nieuw) -> 
B39: Vlottende marge ten opzichte van omzet | D39: =((Cash+Voorraden+Voorschotten)-(Schulden_korte_termijn))/(Opbrengsten) ->  | E39: 0.1 | F39: 0.3 | G39: =IF(D39<=E39,"Zwak",IF(AND(E39<D39,D39<F39),"Matig",IF(D39>=F39,"Goed"," "))) ->  | H39: =((Cash_nieuw+Voorraden_nieuw+Voorschotten_nieuw)-(Schulden_korte_termijn_nieuw))/(Opbrengsten_nieuw) -> 
A41: Terugbetalingscapaciteit
B43: Aflossingscapaciteit | D43: =(D21+Afschrijvingen+Niet_landbouwinkomen+Betaalde_rente)-Gezinsuitgaven ->  | E43: 55000 | F43: 80000 | G43: =IF(D43<=E43,"Zwak",IF(AND(E43<D43,D43<F43),"Matig",IF(D43>=F43,"Goed"," "))) ->  | H43: =(H21+Afschrijvingen_nieuw+Niet_landbouwinkomen_nieuw+Betaalde_rente_nieuw)-Gezinsuitgaven_nieuw -> 
B45: Aflossingsmarge | D45: =D43-(Aflossingen+Betaalde_rente) ->  | E45: 35000 | F45: 60000 | G45: =IF(D45<=E45,"Zwak",IF(AND(E45<D45,D45<F45),"Matig",IF(D45>=F45,"Goed"," "))) ->  | H45: =H43-(Aflossingen_nieuw+Betaalde_rente_nieuw) -> 
B51: Kostenstructuur (OPM: kosten van mogelijk meerdere takken)
B52: Categorie | C52: Totale kost | D52: Kost / kg witloof
B53: Zaaigoed | C53: =#REF! ->  | D53: =C53/#REF! -> 
B54: Meststoffen | C54: =#REF! ->  | D54: =C54/#REF! -> 
B55: Gewasbescherming | C55: =#REF! ->  | D55: =C55/#REF! -> 
B56: Bewaring | C56: =#REF! ->  | D56: =C56/#REF! -> 
B57: Verwarming | C57: =#REF! ->  | D57: =C57/#REF! -> 
B58: Energie en water | C58: =#REF! ->  | D58: =C58/#REF! -> 
B59: Afzet en vermarkting | C59: =#REF! ->  | D59: =C59/#REF! -> 
B60: Loonwerk en seizoenslonen | C60: =#REF! ->  | D60: =C60/#REF! -> 
B61: Diverse | C61: =#REF! ->  | D61: =C61/#REF! -> 
B62: Betaalde arbeid | C62: =Betaalde_arbeid ->  | D62: =C62/#REF! -> 
B63: Betaalde pacht | C63: =Betaalde_pacht ->  | D63: =C63/#REF! -> 

Sheet Rekenblad 2 (hidden)
A3: Rendement van eigen arbeid | B3: Speedometer | D3: Pointer | F3: Real values | H3: Real values new | J3: Pointer new
B4: Start | C4: 0 | D4: Value | E4: =IF(G9<G4,(0/G8)*C8,IF(G9>G7,(G8/G8)*C8,(G9/G8)*C8)) ->  | F4: Min | G4: 0 | H4: Min | I4: 0 | J4: Value | K4: =IF(I9<I4,I4/I8*C8,IF(I9>I7,I8/I8*C8, ((I9-I4)/I8)*C8)) -> 
B5: Initial | C5: =((G5-G4)/G8)*C8 -> 25 | D5: Pointer | E5: 1 | F5: Bad | G5: 25000 | H5: Bad | I5: 25000 | J5: Pointer | K5: 1
B6: Middle | C6: =((G6-G5)/G8)*C8 -> 25 | D6: End | E6: =(C8+C7+C6+C5+C4) - (E4+E5) ->  | F6: Good | G6: 50000 | H6: Good | I6: 50000 | J6: End | K6: =(C8+C7+C6+C5+C4) - (K4+K5) -> 
B7: End | C7: =((G7-G6)/G8)*C8 -> 50 | F7: Max | G7: 100000 | H7: Max | I7: 100000
B8: Total | C8: 100 | F8: Total | G8: =G7-G4 -> 100000 | H8: Total | I8: =I7-I4 -> 100000
F9: Value | G9: =' Rekenblad 1'!D13 ->  | H9: Value | I9: =' Rekenblad 1'!H13 ->  | N9: =C8+C7+C6+C5+C4 -> 200
A10: Rendement van eigen vermogen | B10: Start | C10: 0 | D10: Value | E10: =IF(G15<G10,(0/G14)*C14,IF(G15>G13,(G14/G14)*C14,((G15-G10)/G14)*C14)) ->  | F10: Min | G10: -5 | H10: Min | I10: -5 | J10: Value | K10: =IF(I15<I10,0/I14*C14,IF(I15>I13,I14/I14*C14, ((I15-I10)/I14)*C14)) -> 
B11: Initial | C11: =((G11-G10)/G14)*C14 -> 35.29411765 | D11: Pointer | E11: 1 | F11: Bad | G11: 1 | H11: Bad | I11: 1 | J11: Pointer | K11: 1
B12: Middle | C12: =((G12-G11)/G14)*C14 -> 29.41176471 | D12: End | E12: =(C14+C13+C12+C11+C10) - (E10+E11) ->  | F12: Good | G12: 6 | H12: Good | I12: 6 | J12: End | K12: =(C14+C13+C12+C11+C10) - (K10+K11) -> 
B13: End | C13: =((G13-G12)/G14)*C14 -> 35.29411765 | F13: Max | G13: 12 | H13: Max | I13: 12
B14: Total | C14: 100 | F14: Total | G14: =G13-G10 -> 17 | H14: Total | I14: =I13-I10 -> 17
F15: Value | G15: =' Rekenblad 1'!D17*100 ->  | H15: Value | I15: =' Rekenblad 1'!H17*100 -> 
A16: Rendement van totaal vermogen | B16: Start | C16: 0 | D16: Value | E16: =IF(G21<G16,(0/G20)*C20,IF(G21>G19,(G20/G20)*C20,(G21-G16)/G20)*C20) ->  | F16: Min | G16: -5 | H16: Min | I16: -5 | J16: Value | K16: =IF(I21<I16,I16/I20*C20,IF(I21>I19,I20/I20*C20, ((I21-I16)/I20)*C20)) -> 
B17: Initial | C17: =((G17-G16)/G20)*C20 -> 40 | D17: Pointer | E17: 1 | F17: Bad | G17: 3 | H17: Bad | I17: 3 | J17: Pointer | K17: 1
B18: Middle | C18: =((G18-G17)/G20)*100 -> 25 | D18: End | E18: =(C20+C19+C18+C17+C16) -(E16+E17) ->  | F18: Good | G18: 8 | H18: Good | I18: 8 | J18: End | K18: =(C20+C19+C18+C17+C16) -(K16+K17) -> 
B19: End | C19: =((G19-G18)/G20)*C20 -> 35 | F19: Max | G19: 15 | H19: Max | I19: 15
B20: Total | C20: 100 | F20: Total | G20: =G19-G16 -> 20 | H20: Total | I20: =I19-I16 -> 20
F21: Value | G21: =' Rekenblad 1'!D15*100 ->  | H21: Value | I21: =' Rekenblad 1'!H15*100 -> 
A22: Netto bedrijfsinkomen | B22: Start | C22: 0 | D22: Value | E22: =IF(G27<G22,(0/G26)*C26,IF(G27>G25,(G26/G26)*C26,(G27-G22)/G26*C26)) ->  | F22: Min | G22: 0 | H22: Min | I22: 0 | J22: Value | K22: =IF(I27<I22,I22/I26*C26,IF(I27>I25,I26/I26*C26, ((I27-I22)/I26)*C26)) -> 
B23: Initial | C23: =((G23-G22)/G26)*100 -> 26.66666667 | D23: Pointer | E23: 1 | F23: Bad | G23: 40000 | H23: Bad | I23: 40000 | J23: Pointer | K23: 1
B24: Middle | C24: =((G24-G23)/G26)*C26 -> 26.66666667 | D24: End | E24: =(C22+C23+C24+C25+C26)-(E22+E23) ->  | F24: Good | G24: 80000 | H24: Good | I24: 80000 | J24: End | K24: =(C22+C23+C24+C25+C26)-(K22+K23) -> 
B25: End | C25: =((G25-G24)/G26)*C26 -> 46.66666667 | F25: Max | G25: 150000 | H25: Max | I25: 150000
B26: Total | C26: 100 | F26: Total | G26: =G25-G22 -> 150000 | H26: Total | I26: =I25-I22 -> 150000
F27: Value | G27: =' Rekenblad 1'!D21 ->  | H27: Value | I27: =' Rekenblad 1'!H21 -> 
A28: Vlottende ratio | B28: Start | C28: 0 | D28: Value | E28: =IF(G33<G28,(0/G32)*C32,IF(G33>G32,(G32/G32)*C32,((G33-G28)/G32)*C32)) ->  | F28: Min | G28: 0 | H28: Min | I28: 0 | J28: Value | K28: =IF(I33<I28,I28/I32*C32,IF(I33>I31,I32/I32*C32, ((I33-I28)/I32)*C32)) -> 
B29: Initial | C29: =((G29-G28)/G32)*C32 -> 28.57142857 | D29: Pointer | E29: 1 | F29: Bad | G29: 1 | H29: Bad | I29: 1 | J29: Pointer | K29: 1
B30: Middle | C30: =((G30-G29)/G32)*C32 -> 14.28571429 | D30: End | E30: =(C32*2)-(E28+E29) ->  | F30: Good | G30: 1.5 | H30: Good | I30: 1.5 | J30: End | K30: =(C32*2)-(K28+K29) -> 
B31: End | C31: =((G31-G30)/G32)*C32 -> 57.14285714 | F31: Max | G31: 3.5 | H31: Max | I31: 3.5
B32: Total | C32: 100 | F32: Total | G32: =G31-G28 -> 3.5 | H32: Total | I32: =I31-I28 -> 3.5
F33: Value | G33: =' Rekenblad 1'!D37 ->  | H33: Value | I33: =' Rekenblad 1'!H37 -> 
A34: Vlottende marge-omzet ratio | B34: Start | C34: 0 | D34: Value | E34: =IF(G39<G34,(0/G38)*C38,IF(G39>G37,(G38/G38)*C38,((G39-G34)/G38)*C38)) ->  | F34: Min | G34: -10 | H34: Min | I34: -10 | J34: Value | K34: =IF(I39<I34,I34/I38*C38,IF(I39>I37,I38/I38*C38,((I39-I34))/I38)*C38) -> 
B35: Initial | C35: =((G35-G34)/G38)*C38 -> 33.33333333 | D35: Pointer | E35: 1 | F35: Bad | G35: 10 | H35: Bad | I35: 10 | J35: Pointer | K35: 1
B36: Middle | C36: =((G36-G35)/G38)*C38 -> 33.33333333 | D36: End | E36: =(2*C38)-(E34+E35) ->  | F36: Good | G36: 30 | H36: Good | I36: 30 | J36: End | K36: =(2*C38)-(K34+K35) -> 
B37: End | C37: =((G37-G36)/G38)*C38 -> 33.33333333 | F37: Max | G37: 50 | H37: Max | I37: 50
B38: Total | C38: 100 | F38: Total | G38: =G37-G34 -> 60 | H38: Total | I38: =I37-I34 -> 60
F39: Value | G39: =' Rekenblad 1'!D39*100 ->  | H39: Value | I39: =' Rekenblad 1'!H39*100 -> 
A40: Aflossingscapaciteit | B40: Start | C40: 0 | D40: Value | E40: =IF(G45<G40,(0/G44)*C44,IF(G45>G43,(G44/G44)*C44,((G45-G40)/G44)*C44)) ->  | F40: Min | G40: 0 | H40: Min | I40: 0 | J40: Value | K40: =IF(I45<I40,I40/I44*C44,IF(I45>I43,I44/I44*C44, ((I45-I40)/I44)*C44)) -> 
B41: Initial | C41: =((G41-G40)/G44)*C44 -> 25 | D41: Pointer | E41: 1 | F41: Bad | G41: 50000 | H41: Bad | I41: 50000 | J41: Pointer | K41: 1
B42: Middle | C42: =((G42-G41)/G44)*C44 -> 25 | D42: End | E42: =(2*C44)-(E40+E41) ->  | F42: Good | G42: 100000 | H42: Good | I42: 100000 | J42: End | K42: =(2*C44)-(K40+K41) -> 
B43: End | C43: =((G43-G42)/G44)*C44 -> 50 | F43: Max | G43: 200000 | H43: Max | I43: 200000
B44: Total | C44: 100 | F44: Total | G44: =G43-G40 -> 200000 | H44: Total | I44: =I43-I40 -> 200000
F45: Value | G45: =' Rekenblad 1'!D43 ->  | H45: Value | I45: =' Rekenblad 1'!H43 -> 
A46: Aflossingsmarge | B46: Start | C46: 0 | D46: Value | E46: =IF(G51<G46,(0/G50)*C50,IF(G51>G49,(G50/G50)*C50,((G51-G46)/G50)*C50)) ->  | F46: Min | G46: 0 | H46: Min | I46: 0 | J46: Value | K46: =IF(I51<I46,I46/I50*C50,IF(I51>I49,I50/I50*C50, ((I51-I46)/I50)*C50)) -> 
B47: Initial | C47: =((G47-G46)/G50)*C50 -> 16.66666667 | D47: Pointer | E47: 1 | F47: Bad | G47: 25000 | H47: Bad | I47: 25000 | J47: Pointer | K47: 1
B48: Middle | C48: =((G48-G47)/G50)*C50 -> 33.33333333 | D48: End | E48: =200-(E46+E47) ->  | F48: Good | G48: 75000 | H48: Good | I48: 75000 | J48: End | K48: =200-(K46+K47) -> 
B49: End | C49: =((G49-G48)/G50)*C50 -> 50 | F49: Max | G49: 150000 | H49: Max | I49: 150000
B50: Total | C50: 100 | F50: Total | G50: 150000 | H50: Total | I50: 150000
F51: Value | G51: =' Rekenblad 1'!D45 ->  | H51: Value | I51: =' Rekenblad 1'!H45 -> 
A52: Schuldgraad | B52: Start | C52: 0 | D52: Value | E52: =IF(G57<G52,(0/G56)*C56,IF(G57>G55,(G56/G56)*C56,((G57-G52)/G56)*C56)) ->  | F52: Min | G52: 0 | H52: Min | I52: 0 | J52: Value | K52: =IF(I57<I52,I52/I56*C56,IF(I57>I55,I56/I56*C56, ((I57-I52)/I56)*C56)) -> 
B53: Initial | C53: =((G53-G52)/G56)*C56 -> 30 | D53: Pointer | E53: 1 | F53: Bad | G53: 30 | H53: Bad | I53: 30 | J53: Pointer | K53: 1
B54: Middle | C54: =((G54-G53)/G56)*C56 -> 30 | D54: End | E54: =200-(E52+E53) ->  | F54: Good | G54: 60 | H54: Good | I54: 60 | J54: End | K54: =200-(K52+K53) -> 
B55: End | C55: =((G55-G54)/G56)*C56 -> 40 | F55: Max | G55: 100 | H55: Max | I55: 100
B56: Total | C56: 100 | F56: Total | G56: =G55-G52 -> 100 | H56: Total | I56: =I55-I52 -> 100
F57: Value | G57: =' Rekenblad 1'!D9*100 ->  | H57: Value | I57: =' Rekenblad 1'!H9*100 -> 
A58: Operationele winst marge ratio | B58: Start | C58: 0 | D58: Value | E58: =IF(G63<G58,(0/G62)*C62,IF(G63>G61,(G62/G62)*C62,(G63-G58)/G62)*C62) ->  | F58: Min | G58: 0 | H58: Min | I58: 0 | J58: Value | K58: =IF(I63<I58,I58/I62*C62,IF(I63>I61,I62/I62*C62, ((I63-I58)/I62)*C62)) -> 
B59: Initial | C59: =((G59-G58)/G62)*C62 -> 20 | D59: Pointer | E59: 1 | F59: Bad | G59: 10 | H59: Bad | I59: 10 | J59: Pointer | K59: 1
B60: Middle | C60: =((G60-G59)/G62)*C62 -> 30 | D60: End | E60: =200-(E58+E59) ->  | F60: Good | G60: 25 | H60: Good | I60: 25 | J60: End | K60: =200-(K58+K59) -> 
B61: End | C61: =((G61-G60)/G62)*C62 -> 50 | F61: Max | G61: 50 | H61: Max | I61: 50
B62: Total | C62: 100 | F62: Total | G62: =G61-G58 -> 50 | H62: Total | I62: =I61-I58 -> 50 | N62: =C62+C61+C60+C59+C58 -> 200
F63: Value | G63: =' Rekenblad 1'!D19*100 ->  | H63: Value | I63: =' Rekenblad 1'!H19*100 -> 
A64: Activa turnover | B64: Start | C64: 0 | D64: Value | E64: =IF(G69<G64,(0/G68)*C68,IF(G69>G67,(G68/G68)*C68,((G69-G64)/G68)*C68)) ->  | F64: Min | G64: 0 | H64: Min | I64: 0 | J64: Value | K64: =IF(I69<I64,I64/I68*C68,IF(I69>I67,I68/I68*C68, ((I69-I64)/I68)*C68)) -> 
B65: Initial | C65: =((G65-G64)/G68)*C68 -> 40 | D65: Pointer | E65: 1 | F65: Bad | G65: 30 | H65: Bad | I65: 30 | J65: Pointer | K65: 1
B66: Middle | C66: =((G66-G65)/G68)*C68 -> 20 | D66: End | E66: =200-(E65+E64) ->  | F66: Good | G66: 45 | H66: Good | I66: 45 | J66: End | K66: =200-(K65+K64) -> 
B67: End | C67: =((G67-G66)/G68)*C68 -> 40 | F67: Max | G67: 75 | H67: Max | I67: 75
B68: Total | C68: 100 | F68: Total | G68: =G67-G64 -> 75 | H68: Total | I68: =I67-I64 -> 75
F69: Value | G69: =' Rekenblad 1'!D25*100 ->  | H69: Value | I69: =' Rekenblad 1'!H25*100 -> 
A70: Kosten omzet ratio | B70: Start | C70: 0 | D70: Value | E70: =IF(G75<G70,(0/G74)*C74,IF(G75>G73,(G74/G74)*C74,((G75-G70)/G74)*C74)) ->  | F70: Min | G70: 0 | H70: Min | I70: 0 | J70: Value | K70: =IF(I75<I70,I70/I74*C74,IF(I75>I73,I74/I74*C74, ((I75-I70)/I74)*C74)) -> 
B71: Initial | C71: =((G71-G70)/G74)*C74 -> 63.15789474 | D71: Pointer | E71: 1 | F71: Bad | G71: 60 | H71: Bad | I71: 60 | J71: Pointer | K71: 1
B72: Middle | C72: =((G72-G71)/G74)*C74 -> 21.05263158 | D72: End | E72: =200-(E70+E71) ->  | F72: Good | G72: 80 | H72: Good | I72: 80 | J72: End | K72: =200-(K70+K71) -> 
B73: End | C73: =((G73-G72)/G74)*C74 -> 15.78947368 | F73: Max | G73: 95 | H73: Max | I73: 95
B74: Total | C74: 100 | F74: Total | G74: =G73-G70 -> 95 | H74: Total | I74: =I73-I70 -> 95
F75: Value | G75: =' Rekenblad 1'!D27*100 ->  | H75: Value | I75: =' Rekenblad 1'!H27*100 -> 
